bitfinex/quotes_SOLUSD_20260203
["timestamp","ask_amount","ask_price","bid_price","bid_amount"]
[1770143411908,4.39458951,97.899,97.86,9.37845677]
[1770143412119,4.39458951,97.899,97.87,9.37845677]
[1770143412327,80.34455437,97.979,97.86,9.37845677]
[1770143412328,4.39458951,97.909,97.86,9.37845677]
[1770143412642,4.39458951,97.899,97.85,9.37845677]
[1770143412820,4.39458951,97.889,97.85,9.37845677]
[1770143413131,9.37845677,97.92,97.87,9.37845677]
[1770143413921,9.37845677,97.93,97.88,9.37845677]
[1770143414118,51.70246386,98.008,97.89,9.37845677]
[1770143414339,51.70246386,98.008,97.875,4.19661328]
[1770143414340,9.37845677,97.98,97.93,9.37845677]
[1770143414642,13.3374678,98.015,97.95,9.37845677]
[1770143414930,9.37845677,98.02,97.97,9.37845677]
[1770143415129,4.39458951,98.019,97.97,9.37845677]
[1770143415332,4.39458951,98.009,97.921,4.19661328]
[1770143415510,4.39458951,98.009,97.845,51.68283733]
[1770143415511,4.39458951,97.979,97.884,4.19661328]
[1770143415707,4.39458951,97.979,97.921,4.19661328]
[1770143416113,13.77304628,97.97,97.921,4.19661328]
[1770143416309,4.39458951,98.005,97.951,4.19661328]
[1770143416513,4.39458951,98.005,97.887,0.14216157]
[1770143416514,4.39458951,98.035,97.96,4.19661328]
[1770143416716,4.39458951,98.019,97.96,9.37845677]
[1770143416945,4.39458951,98.009,97.96,9.37845677]
[1770143417229,9.37845677,97.99,97.94,9.37845677]
[1770143417432,4.39458951,97.989,97.938,4.19661328]
[1770143417734,4.39458951,98.009,97.96,9.37845677]
[1770143418716,4.39458951,97.989,97.919,4.19661328]
[1770143418920,4.39458951,97.97,97.92,9.37845677]
[1770143419234,4.39458951,97.97,97.92,13.57507005]
[1770143419235,13.77304628,97.97,97.92,13.57507005]
[1770143419738,4.39458951,97.97,97.93,9.37845677]
[1770143420140,4.39458951,97.97,97.875,10.21707982]
[1770143420141,13.77304628,97.96,97.91,9.37845677]
[1770143420343,13.77304628,97.96,97.845,25.5504349]
[1770143420344,9.37845677,97.93,97.888,4.19661328]
[1770143420914,10.32291439,97.986,97.871,4.37123345]
[1770143420915,4.42184674,97.919,97.871,4.37123345]
[1770143421137,2.20832376,97.919,97.88,9.37845677]
[1770143421322,51.04979246,97.99,97.872,51.82788704]
[1770143421323,28.38,98.054,97.911,4.37123345]
[1770143421521,9.37845677,98.01,97.95,9.37845677]
[1770143421928,9.37845677,97.99,97.94,9.37845677]
[1770143422139,9.37845677,98.01,97.95,9.37845677]
[1770143422435,28.38,98.054,97.96,9.37845677]
[1770143422619,28.38,98.054,97.97,9.37845677]
[1770143422620,9.37845677,98.02,97.97,9.37845677]
[1770143422823,13.3374678,98.06,97.99,9.37845677]
[1770143422824,9.37845677,98.04,97.99,9.37845677]
[1770143423024,4.42184674,98.039,97.974,4.37123345]
[1770143423245,9.37845677,98.02,97.974,4.37123345]
[1770143423434,4.42184674,98.019,97.97,9.37845677]
[1770143423938,4.42184674,98.019,97.98,9.37845677]
[1770143424242,4.42184674,98.019,97.97,9.37845677]
[1770143424443,4.42184674,97.999,97.95,9.37845677]
[1770143424644,4.42184674,98.015,97.961,4.37123345]
[1770143424820,9.37845677,98.01,97.961,4.37123345]
[1770143425341,9.37845677,98.01,97.906,5.36086188]
[1770143425342,9.37845677,98.0,97.95,9.37845677]
[1770143425541,9.37845677,98.0,97.896,5.36086188]
[1770143425542,9.37845677,98.01,97.96,9.37845677]
[1770143425847,13.80030351,98.01,97.96,9.37845677]
[1770143427245,4.42184674,98.01,97.97,9.37845677]
[1770143427620,4.42184674,98.024,97.98,9.37845677]
[1770143427844,9.37845677,98.03,97.98,9.37845677]
[1770143428026,51.71295972,98.11,97.92,9.37845677]
[1770143428027,4.42184674,98.039,98.0,9.37845677]
[1770143428224,4.42184674,98.054,98.02,9.37845677]
[1770143428640,4.42184674,98.049,97.995,4.37123345]
[1770143428837,0.2,98.11,97.981,4.37123345]
[1770143428838,9.37845677,98.03,97.981,4.37123345]
[1770143429021,4.42184674,98.029,97.98,9.37845677]
[1770143429437,4.42184674,98.044,97.991,4.37123345]
[1770143429640,4.42184674,98.044,98.0,9.37845677]
[1770143429942,4.42184674,98.039,97.991,4.37123345]
[1770143430326,9.37845677,98.03,97.991,4.37123345]
[1770143430529,9.37845677,98.03,97.98,9.37845677]
[1770143430740,9.37845677,98.08,97.962,4.37123345]
[1770143430741,9.37845677,98.01,97.962,4.37123345]
[1770143430927,9.37845677,98.02,97.98,9.37845677]
[1770143431125,4.42184674,98.029,97.98,9.37845677]
[1770143431339,0.75612233,98.046,98.0,9.37845677]
[1770143431647,4.42184674,98.061,98.02,9.37845677]
[1770143431843,0.2,98.14,97.956,5.36086188]
[1770143431844,4.42184674,98.109,98.04,9.37845677]
[1770143432029,4.42184674,98.089,98.016,4.37123345]
[1770143432348,9.37845677,98.06,98.016,4.37123345]
[1770143432543,4.42184674,98.069,98.03,9.37845677]
[1770143432731,4.42184674,98.069,98.021,4.37123345]
[1770143432937,9.37845677,98.05,98.01,9.37845677]
[1770143433127,9.37845677,98.05,98.006,4.37123345]
[1770143434448,4.42184674,98.069,98.02,9.37845677]
[1770143434740,4.42184674,98.059,98.01,9.37845677]
[1770143434943,4.42184674,98.059,98.007,4.37123345]
[1770143435134,9.37845677,98.05,98.007,4.37123345]
[1770143435338,4.42184674,98.059,98.02,9.37845677]
[1770143435640,4.42184674,98.069,98.021,4.37123345]
[1770143435834,9.37845677,98.06,98.021,4.37123345]
[1770143436038,4.42184674,98.081,98.04,9.37845677]
[1770143436342,4.42184674,98.079,98.03,9.37845677]
[1770143436544,10.32291439,98.13,98.051,4.37123345]
[1770143436545,4.42184674,98.108,98.051,4.37123345]
[1770143436844,4.42184674,98.099,98.06,9.37845677]
[1770143437055,9.57845677,98.11,98.08,9.37845677]
[1770143437056,0.2,98.11,98.08,9.37845677]
[1770143437229,0.2,98.11,98.071,4.37123345]
[1770143438326,0.2,98.11,98.08,9.37845677]
[1770143438546,9.55186464,98.11,98.056,4.37123345]
[1770143438849,9.55186464,98.11,98.061,4.37123345]
[1770143439142,9.55186464,98.11,98.017,0.14216157]
[1770143439143,9.35186464,98.1,98.047,4.37123345]
[1770143439347,9.35186464,98.1,98.0,9.35186464]
[1770143439348,9.35186464,98.1,98.051,4.37123345]
[1770143440249,4.42184674,98.079,98.03,9.35186464]
[1770143440451,0.2,98.11,98.04,13.72309809]
[1770143440452,9.22056364,98.09,98.04,13.72309809]
[1770143440629,9.35186464,98.08,98.04,13.72309809]
[1770143440836,9.35186464,98.08,98.04,4.37123345]
[1770143441248,13.77371138,98.07,98.026,4.37123345]
[1770143441436,9.35186464,98.06,98.011,4.37123345]
[1770143441642,9.35186464,98.05,98.011,4.37123345]
[1770143441838,4.42184674,98.069,98.021,4.37123345]
[1770143442039,9.35186464,98.08,98.031,4.37123345]
[1770143442248,4.42184674,98.089,98.05,9.35186464]
[1770143442444,4.42184674,98.089,98.041,4.37123345]
[1770143442643,4.42184674,98.089,98.05,9.35186464]
[1770143442952,4.37762827,98.056,97.95,9.35186464]
[1770143443142,9.35186464,98.08,97.961,4.37123345]
[1770143443143,9.35186464,98.01,97.961,4.37123345]
[1770143443453,9.35186464,98.03,97.981,4.37123345]
[1770143443667,9.35186464,98.03,97.99,13.72309809]
[1770143444144,9.35186464,98.05,98.01,9.35186464]
[1770143444341,9.35186464,98.05,98.001,4.37123345]
[1770143444646,9.35186464,98.04,98.001,4.37123345]
[1770143444840,9.35186464,98.05,98.001,4.37123345]
[1770143445260,9.35186464,98.04,98.001,4.37123345]
[1770143445564,4.27527085,98.072,97.937,4.37123345]
[1770143445565,4.37762827,98.036,97.937,4.37123345]
[1770143445727,4.37762827,98.009,97.95,9.35186464]
[1770143445928,9.35186464,98.0,97.961,4.37123345]
[1770143446147,13.72949291,98.02,97.97,9.35186464]
[1770143446453,4.37762827,98.035,97.99,9.35186464]
[1770143446633,9.35186464,98.03,97.981,4.37123345]
[1770143446828,4.27527085,98.052,97.961,4.37123345]
[1770143446829,9.35186464,98.01,97.961,4.37123345]
[1770143447342,9.35186464,98.02,97.971,4.37123345]
[1770143447650,9.35186464,98.03,97.971,4.37123345]
[1770143448463,9.35186464,98.02,97.971,4.37123345]
[1770143449159,4.37762827,98.029,97.971,4.37123345]
[1770143449533,9.35186464,98.02,97.971,4.37123345]
[1770143449948,9.35186464,98.01,97.971,4.37123345]
[1770143450330,9.35186464,98.01,97.917,5.36086188]
[1770143450331,9.35186464,98.0,97.957,4.13139976]
[1770143450535,4.16753012,98.014,97.957,4.13139976]
[1770143450536,9.35186464,97.99,97.957,4.13139976]
[1770143450734,9.35186464,98.01,97.957,4.13139976]
[1770143451164,4.16753012,98.014,97.961,4.13139976]
[1770143451346,9.35186464,98.01,97.961,4.13139976]
[1770143451936,9.35186464,98.02,97.961,4.13139976]
[1770143452153,4.16753012,98.076,97.971,4.13139976]
[1770143452357,5.36086188,98.102,97.971,4.13139976]
[1770143452358,9.35186464,98.03,97.971,4.13139976]
[1770143452765,9.35186464,98.02,97.971,4.13139976]
[1770143453267,4.16753012,98.059,98.005,4.13139976]
[1770143453556,9.35186464,98.02,97.992,4.13139976]
[1770143454165,9.35186464,98.04,97.992,4.13139976]
[1770143454738,5.36086188,98.122,97.992,4.13139976]
[1770143454739,4.37762827,98.069,97.992,4.13139976]
[1770143454942,9.35186464,98.06,98.001,4.08081931]
[1770143455139,9.35186464,98.05,98.001,4.08081931]
[1770143455558,9.35186464,98.06,98.001,4.08081931]
[1770143455861,9.35186464,98.04,98.001,4.08081931]
[1770143456962,9.35186464,98.16,98.011,4.08081931]
[1770143457146,9.35186464,98.1,98.041,4.08081931]
[1770143457349,9.55186464,98.11,98.051,4.08081931]
[1770143458447,0.2,98.11,98.051,4.08081931]
[1770143458647,9.55186464,98.11,98.051,4.08081931]
[1770143459158,0.2,98.11,98.051,4.08081931]
[1770143459360,9.55186464,98.11,98.051,4.08081931]
[1770143459564,0.2,98.11,98.051,4.08081931]
[1770143459752,9.55186464,98.11,98.051,4.08081931]
[1770143460260,50.48735267,98.202,98.018,5.36086188]
[1770143460261,4.37762827,98.158,98.09,9.35186464]
[1770143460468,4.37762827,98.158,98.101,4.08081931]
[1770143460646,4.37762827,98.158,98.111,4.08081931]
[1770143460960,9.35186464,98.18,98.121,4.08081931]
[1770143461164,9.35186464,98.16,98.121,4.08081931]
[1770143461347,9.35186464,98.16,98.078,5.36086188]
[1770143461348,4.38602778,98.177,98.1,9.35186464]
[1770143461549,9.35186464,98.19,98.131,4.08081931]
[1770143461763,4.38602778,98.219,98.161,4.08081931]
[1770143461964,9.55186464,98.32,98.161,4.08081931]
[1770143461965,4.58602778,98.21,98.161,4.08081931]
[1770143462264,0.2,98.21,98.161,4.08081931]
[1770143462465,0.2,98.21,98.132,10.19035584]
[1770143462466,0.2,98.21,98.181,4.08081931]
[1770143462768,9.35186464,98.2,98.14,9.35186464]
[1770143463256,4.38602778,98.209,98.12,9.35186464]
[1770143463457,0.2,98.21,98.095,4.27527085]
[1770143463458,9.55186464,98.21,98.15,9.35186464]
[1770143463649,0.2,98.21,98.17,9.35186464]
[1770143464262,9.35186464,98.2,98.14,9.35186464]
[1770143464561,9.35186464,98.2,98.13,0.14216157]
[1770143464562,9.55186464,98.21,98.16,9.35186464]
[1770143464755,0.2,98.21,98.161,4.08081931]
[1770143464956,9.35186464,98.2,98.161,4.08081931]
[1770143465159,4.58602778,98.21,98.101,4.08081931]
[1770143465160,9.35186464,98.17,98.101,4.08081931]
[1770143465461,9.35186464,98.14,98.097,4.08081931]
[1770143465647,4.27527085,98.18,98.101,4.08081931]
[1770143465648,9.35186464,98.16,98.101,4.08081931]
[1770143465849,4.27527085,98.188,98.111,4.08081931]
[1770143466156,9.35186464,98.18,98.121,4.08081931]
[1770143466356,4.38602778,98.194,98.121,4.08081931]
[1770143466357,9.35186464,98.17,98.121,4.08081931]
[1770143466656,9.35186464,98.17,98.08,9.35186464]
[1770143466657,9.35186464,98.14,98.093,4.08081931]
[1770143467166,4.27527085,98.17,98.093,4.08081931]
[1770143467167,9.35186464,98.13,98.093,4.08081931]
[1770143467460,9.35186464,98.14,98.093,4.08081931]
[1770143467663,9.35186464,98.12,98.093,4.08081931]
[1770143467964,9.35186464,98.11,98.061,4.08081931]
[1770143468262,4.38602778,98.133,98.061,4.08081931]
[1770143468263,9.35186464,98.12,98.061,4.08081931]
[1770143468445,9.35186464,98.13,98.071,4.08081931]
[1770143468646,9.35186464,98.12,98.071,4.08081931]
[1770143468845,9.35186464,98.11,98.071,4.08081931]
[1770143469055,13.73789242,98.12,98.071,4.08081931]
[1770143469453,9.35186464,98.11,98.071,4.08081931]
[1770143469656,4.38602778,98.12,98.071,4.08081931]
[1770143469851,9.35186464,98.13,98.071,4.08081931]
[1770143470251,9.35186464,98.13,98.081,4.08081931]
[1770143470654,9.35186464,98.12,98.081,4.08081931]
[1770143470854,4.38602778,98.138,98.067,4.08081931]
[1770143471064,4.38602778,98.138,98.081,4.08081931]
[1770143471368,4.38602778,98.138,98.091,4.08081931]
[1770143471755,9.35186464,98.13,98.091,4.08081931]
[1770143472148,0.2,98.21,98.091,4.08081931]
[1770143472149,9.35186464,98.15,98.091,4.08081931]
[1770143472349,0.2,98.21,98.069,5.36086188]
[1770143472350,9.35186464,98.18,98.121,4.08081931]
[1770143472659,4.38602778,98.179,98.121,4.08081931]
[1770143472859,9.35186464,98.17,98.121,4.08081931]
[1770143473055,4.38602778,98.179,98.13,13.43268395]
[1770143473257,4.38602778,98.179,98.13,4.08081931]
[1770143473457,9.35186464,98.17,98.13,4.08081931]
[1770143473656,4.38602778,98.159,98.111,4.08081931]
[1770143474175,9.35186464,98.17,98.121,4.08081931]
[1770143474362,4.38602778,98.173,98.121,4.08081931]
[1770143474854,9.35186464,98.16,98.121,4.08081931]
[1770143475257,4.38602778,98.169,98.121,4.08081931]
[1770143475455,4.38602778,98.129,98.07,4.08081931]
[1770143475655,0.2,98.21,98.081,4.08081931]
[1770143475656,4.38602778,98.159,98.081,4.08081931]
[1770143475975,5.36086188,98.203,98.032,28.34]
[1770143475976,4.38602778,98.173,98.101,4.08081931]
[1770143476271,4.38602778,98.173,98.121,4.08081931]
[1770143476272,9.35186464,98.17,98.121,4.08081931]
[1770143476648,4.27527085,98.201,98.0,9.35186464]
[1770143476649,9.35186464,98.14,98.106,4.08081931]
[1770143476848,4.38602778,98.164,98.1,9.35186464]
[1770143477073,9.35186464,98.15,98.101,4.08081931]
[1770143477273,4.38602778,98.159,98.101,4.08081931]
[1770143477472,9.35186464,98.15,98.101,4.08081931]
[1770143477665,0.2,98.21,98.06,0.14216157]
[1770143477666,4.38602778,98.185,98.121,4.08081931]
[1770143477880,9.35186464,98.18,98.131,4.08081931]
[1770143478080,4.38602778,98.182,98.11,9.35186464]
[1770143478375,4.38602778,98.18,98.14,9.35186464]
[1770143478562,4.38602778,98.18,98.131,4.08081931]
[1770143478761,0.2,98.21,98.161,4.08081931]
[1770143479454,4.58602778,98.21,98.161,4.08081931]
[1770143479652,13.93789242,98.21,98.161,4.08081931]
[1770143479972,13.93789242,98.21,98.171,4.08081931]
[1770143479973,0.2,98.21,98.171,4.08081931]
[1770143480157,9.55186464,98.21,98.171,4.08081931]
[1770143480357,14.04087788,98.21,98.157,4.13883316]
[1770143480673,4.48901324,98.209,98.16,13.4906978]
[1770143480856,4.48901324,98.209,98.161,4.13883316]
[1770143481457,9.55186464,98.21,98.148,4.13883316]
[1770143481458,9.35186464,98.18,98.148,4.13883316]
[1770143481653,4.48901324,98.204,98.148,4.13883316]
[1770143481871,9.55186464,98.21,98.161,4.13883316]
[1770143482176,0.2,98.21,98.171,4.13883316]
[1770143482673,4.48901324,98.209,98.156,4.13883316]
[1770143482873,4.48901324,98.199,98.156,4.13883316]
[1770143483056,9.35186464,98.19,98.141,4.13883316]
[1770143483668,9.35186464,98.18,98.141,4.13883316]
[1770143484161,9.35186464,98.17,98.141,4.13883316]
[1770143484360,4.48901324,98.199,98.151,4.13883316]
[1770143484653,4.48901324,98.199,98.099,5.36086188]
[1770143484654,9.35186464,98.17,98.135,4.13883316]
[1770143484865,9.35186464,98.18,98.135,4.13883316]
[1770143485071,4.48901324,98.187,98.135,4.13883316]
[1770143485275,4.48901324,98.187,98.141,4.13883316]
[1770143486284,0.2,98.21,98.114,4.13883316]
[1770143486472,9.35186464,98.14,98.114,4.13883316]
[1770143486658,9.35186464,98.14,98.101,30.72907585]
[1770143486659,9.35186464,98.16,98.101,30.72907585]
[1770143486863,9.35186464,98.13,98.101,30.72907585]
[1770143487271,9.35186464,98.14,98.101,34.86790901]
[1770143487884,4.48901324,98.152,98.101,34.86790901]
[1770143487885,4.48901324,98.152,98.102,4.13883316]
[1770143488462,4.48901324,98.152,98.111,4.13883316]
[1770143488773,9.35186464,98.16,98.111,4.13883316]
[1770143488975,9.35186464,98.15,98.111,4.13883316]
[1770143489378,9.35186464,98.12,98.101,30.72907585]
[1770143489679,4.48901324,98.129,98.101,30.72907585]
[1770143490079,9.35186464,98.14,98.102,4.13883316]
[1770143490384,13.84087788,98.14,98.101,30.72907585]
[1770143490679,9.35186464,98.16,98.111,4.13883316]
[1770143490886,13.84087788,98.16,98.111,4.13883316]
[1770143492276,9.35186464,98.15,98.111,4.13883316]
[1770143492985,4.48901324,98.149,98.111,4.13883316]
[1770143494286,4.48901324,98.129,98.101,30.72907585]
[1770143494463,4.27527085,98.173,98.101,30.72907585]
[1770143494464,4.48901324,98.119,98.101,30.72907585]
[1770143494781,9.35186464,98.12,98.101,30.72907585]
[1770143494987,4.27527085,98.157,98.101,30.72907585]
[1770143495184,9.35186464,98.12,98.101,30.72907585]
[1770143496189,4.27527085,98.216,98.102,4.13883316]
[1770143496481,9.35186464,98.14,98.102,4.13883316]
[1770143498697,9.35186464,98.14,98.102,4.13883316]
[1770143499191,9.35186464,98.13,98.101,30.72907585]
[1770143500281,9.35186464,98.12,98.101,30.72907585]
[1770143500487,2.50487907,98.13,98.101,30.72907585]
[1770143500679,9.35220823,98.12,98.101,30.72907585]
[1770143501794,9.35220823,98.11,98.101,21.31405058]
[1770143502486,9.35220823,98.11,98.074,4.13883316]
[1770143502889,9.35220823,98.12,98.074,4.13883316]
[1770143503191,2.45503196,98.131,98.074,4.13883316]
[1770143503374,9.35220823,98.12,98.074,4.13883316]
[1770143503575,4.27527085,98.144,98.081,4.13883316]
[1770143503576,9.35220823,98.13,98.081,4.13883316]
[1770143503776,9.35220823,98.14,98.091,4.13883316]
[1770143503974,9.35220823,98.13,98.091,4.13883316]
[1770143504172,11.80724019,98.14,98.091,4.13883316]
[1770143504380,9.35220823,98.13,98.091,4.13883316]
[1770143504674,2.45503196,98.129,98.078,4.13883316]
[1770143504885,11.80724019,98.12,98.078,4.13883316]
[1770143505101,9.35220823,98.12,98.078,4.13883316]
[1770143505502,9.35220823,98.12,98.041,18.35258068]
[1770143505503,2.45503196,98.116,98.042,4.13883316]
[1770143505692,9.35220823,98.1,98.051,4.13883316]
[1770143505892,4.27527085,98.136,98.051,4.13883316]
[1770143505893,9.35220823,98.09,98.051,4.13883316]
[1770143506086,9.35220823,98.11,98.051,4.13883316]
[1770143506286,2.45503196,98.128,98.081,4.13883316]
[1770143506583,2.45503196,98.156,98.091,4.13883316]
[1770143506781,9.35220823,98.15,98.091,4.13883316]
[1770143507090,2.45503196,98.132,98.08,4.13883316]
[1770143507295,9.35220823,98.12,98.08,4.13883316]
[1770143508330,2.45503196,98.132,98.081,4.13883316]
[1770143508486,2.45503196,98.144,98.091,4.13883316]
[1770143508686,9.35220823,98.16,98.121,4.13883316]
[1770143509306,9.35220823,98.15,98.108,4.13883316]
[1770143511826,2.45503196,98.186,98.111,4.22821535]
[1770143512127,9.35220823,98.17,98.131,4.22821535]
[1770143512297,2.45503196,98.191,98.131,4.22821535]
[1770143512493,2.45503196,98.191,98.141,4.22821535]
[1770143512816,2.45503196,98.191,98.085,25.48808958]
[1770143512817,9.55220823,98.21,98.161,4.22821535]
[1770143513017,9.35220823,98.2,98.161,4.22821535]
[1770143513508,9.55220823,98.21,98.161,4.22821535]
[1770143513710,9.35220823,98.2,98.161,4.22821535]
[1770143513917,9.55220823,98.21,98.161,4.22821535]
[1770143514123,0.2,98.21,98.161,4.22821535]
[1770143514300,9.55220823,98.21,98.161,4.22821535]
[1770143515011,0.2,98.21,98.161,4.22821535]
[1770143515220,9.55220823,98.21,98.161,4.22821535]
[1770143515844,9.35220823,98.2,98.161,4.22821535]
[1770143515997,9.35220823,98.19,98.161,4.22821535]
[1770143516415,0.2,98.21,98.149,4.43597855]
[1770143516416,9.35220823,98.18,98.149,4.43597855]
[1770143516591,9.35220823,98.18,98.135,4.43597855]
[1770143516916,9.35220823,98.17,98.135,4.43597855]
[1770143517709,9.35220823,98.16,98.123,4.43597855]
[1770143520720,9.35220823,98.14,98.101,4.43597855]
[1770143521119,9.35220823,98.13,98.101,4.43597855]
[1770143521332,9.35220823,98.14,98.101,4.43597855]
[1770143521521,9.35220823,98.11,98.056,4.43597855]
[1770143521716,9.35220823,98.12,98.071,4.43597855]
[1770143522725,9.35220823,98.11,98.071,4.43597855]
[1770143522911,9.35220823,98.1,98.071,4.43597855]
[1770143523118,9.35220823,98.09,98.042,4.43597855]
[1770143523915,9.35220823,98.07,98.042,4.43597855]
[1770143524243,9.35220823,98.05,98.04,0.1]
[1770143524645,9.35220823,98.05,98.041,18.30323205]
[1770143524946,9.35220823,98.05,98.013,4.43597855]
[1770143525117,4.27527085,98.077,98.013,4.43597855]
[1770143525318,9.35220823,98.06,98.013,4.43597855]
[1770143525836,6.68144767,98.076,97.984,28.32]
[1770143525837,2.40617682,98.089,98.021,4.43597855]
[1770143526023,9.35220823,98.16,98.041,4.43597855]
[1770143526024,9.35220823,98.09,98.041,4.43597855]
[1770143526432,9.35220823,98.1,98.041,4.43597855]
[1770143526746,9.35220823,98.07,98.041,4.43597855]
[1770143527146,2.40617682,98.087,98.041,4.43597855]
[1770143527331,9.35220823,98.08,98.041,4.43597855]
[1770143527640,9.35220823,98.07,98.041,4.43597855]
[1770143527944,9.35220823,98.09,98.041,4.43597855]
[1770143528126,9.35220823,98.08,98.041,4.43597855]
[1770143528726,2.40617682,98.1,98.041,4.43597855]
[1770143528926,9.35220823,98.08,98.041,4.43597855]
[1770143529249,9.35220823,98.07,98.041,4.43597855]
[1770143529452,2.40617682,98.103,98.041,4.43597855]
[1770143529746,9.35220823,98.1,98.051,4.43597855]
[1770143529952,15.02051406,98.139,98.051,4.43597855]
[1770143529953,9.35220823,98.09,98.051,4.43597855]
[1770143530136,2.40617682,98.117,97.999,5.36086188]
[1770143530137,9.35220823,98.11,98.061,4.43597855]
[1770143530438,2.40617682,98.117,98.071,4.43597855]
[1770143530859,9.35220823,98.11,98.071,4.43597855]
[1770143531431,2.40617682,98.117,98.071,4.43597855]
[1770143531751,9.35220823,98.1,98.071,4.43597855]
[1770143532051,2.40617682,98.076,97.982,4.43597855]
[1770143532232,9.35220823,98.03,98.001,4.43597855]
[1770143532439,9.35220823,98.04,98.001,4.43597855]
[1770143532632,9.35220823,98.05,98.001,4.43597855]
[1770143533934,9.35220823,98.06,98.011,4.43597855]
[1770143534927,9.35220823,98.07,98.021,4.43597855]
[1770143535134,28.34,98.138,98.041,4.43597855]
[1770143535135,9.35220823,98.09,98.041,4.43597855]
[1770143535332,50.84622171,98.165,98.0,9.35220823]
[1770143535333,9.35220823,98.11,98.061,4.43597855]
[1770143535567,2.40617682,98.085,98.012,4.43597855]
[1770143535735,28.34,98.159,98.021,4.43597855]
[1770143535736,9.35220823,98.08,98.021,4.43597855]
[1770143536055,9.35220823,98.07,98.021,4.43597855]
[1770143536261,9.35220823,98.08,98.031,4.43597855]
[1770143536563,9.35220823,98.06,98.031,4.43597855]
[1770143536768,2.40617682,98.073,97.981,4.43597855]
[1770143537052,2.40617682,98.073,97.968,54.89839093]
[1770143537053,2.40617682,98.073,97.991,4.43597855]
[1770143537238,9.35220823,98.04,97.991,4.43597855]
[1770143537433,9.35220823,98.03,97.991,4.43597855]
[1770143540251,2.40617682,98.052,97.991,4.43597855]
[1770143540659,9.35220823,98.04,97.991,4.43597855]
[1770143543455,9.35220823,98.04,98.001,4.08395231]
[1770143544142,2.40617682,98.053,98.001,4.08395231]
[1770143544143,9.35220823,98.02,98.001,4.08395231]
[1770143544336,9.35220823,98.04,98.001,4.08395231]
[1770143545538,9.35220823,98.05,98.001,4.08395231]
[1770143545751,9.35220823,98.03,98.001,4.08395231]
[1770143546347,9.35220823,98.03,97.989,4.08395231]
[1770143546348,9.35220823,98.01,97.989,4.08395231]
[1770143546545,4.27527085,98.066,97.98,4.58784758]
[1770143546750,9.35220823,98.03,97.981,4.48784758]
[1770143546945,4.27527085,98.066,97.981,4.48784758]
[1770143547151,9.35220823,98.02,97.981,4.48784758]
[1770143547362,9.35220823,98.01,97.981,4.48784758]
[1770143547553,4.27527085,98.066,97.982,50.6084507]
[1770143547748,0.58110397,98.065,97.982,50.6084507]
[1770143547945,11.3837369,98.065,97.981,4.48784758]
[1770143548141,11.3837369,98.065,97.98,0.1]
[1770143548142,9.35220823,98.02,97.98,0.1]
[1770143548351,9.35220823,98.0,97.981,4.48784758]
[1770143548553,0.02406178,98.064,97.99,9.35220822]
[1770143548746,0.02406178,98.064,97.98,0.1]
[1770143548747,9.35220823,98.0,97.98,0.1]
[1770143549143,9.35220823,98.01,97.981,4.48784758]
[1770143549346,9.35220823,98.0,97.981,4.48784758]
[1770143549645,9.35220823,98.0,97.98,0.1]
[1770143549848,0.02406178,97.989,97.94,4.48784758]
[1770143550061,9.35220823,97.97,97.942,4.49987847]
[1770143550277,4.27527085,98.021,98.0,0.00381722]
[1770143550448,9.35220823,98.01,97.945,51.58933878]
[1770143550646,11.43011464,98.032,97.946,4.49987847]
[1770143550858,11.43011464,98.032,97.951,4.49987847]
[1770143550859,9.35220823,98.0,97.951,4.49987847]
[1770143551060,4.27527085,98.029,97.951,4.49987847]
[1770143551263,9.35220823,97.99,97.951,4.49987847]
[1770143551783,9.35220823,97.98,97.951,4.49987847]
[1770143552077,4.27527085,98.021,97.951,4.49987847]
[1770143552250,9.35220823,97.99,97.951,4.49987847]
[1770143552580,4.27527085,98.023,97.951,4.49987847]
[1770143552581,9.35220823,97.98,97.951,4.49987847]
[1770143553144,9.35220823,97.99,97.951,4.49987847]
[1770143553657,9.35220823,98.03,97.981,4.49987847]
[1770143553854,9.35220823,98.02,97.981,4.49987847]
[1770143554046,9.35220823,98.01,97.981,4.49987847]
[1770143554865,4.27527085,98.077,97.969,4.49987847]
[1770143555176,9.35220823,98.0,97.969,4.49987847]
[1770143555375,9.35220823,97.98,97.951,4.49987847]
[1770143555976,9.35220823,97.99,97.951,4.49987847]
[1770143556674,9.35220823,98.08,97.971,4.49987847]
[1770143556675,9.35220823,98.01,97.971,4.49987847]
[1770143556973,9.35220823,98.06,98.001,4.49987847]
[1770143557264,9.35220823,98.05,98.011,4.49987847]
[1770143558071,9.35220823,98.04,98.001,4.49987847]
[1770143558277,9.35220823,98.08,98.001,4.49987847]
[1770143558278,9.35220823,98.03,98.001,4.49987847]
[1770143558869,9.35220823,98.05,98.001,4.49987847]
[1770143559259,9.35220823,98.05,98.011,4.49987847]
[1770143559649,9.35220823,98.04,98.001,4.49987847]
[1770143560374,9.35220823,98.03,98.001,4.49987847]
[1770143560750,4.27527085,98.077,97.989,4.49987847]
[1770143560951,9.35220823,98.02,97.971,4.49987847]
[1770143561265,9.35220823,98.01,97.971,4.49987847]
[1770143562270,9.35220823,98.0,97.971,4.49987847]